[Event "56th Rubinstein Memorial C 2020"]
[Site "Polanica Zdroj"]
[Date "2020.08.18"]
[Round "4.10"]
[White "Salamon, Julia"]
[Black "Witkowski, Krzysztof"]
[Result "0-1"]
[ECO "A95"]
[WhiteElo "1421"]
[BlackElo "1791"]
[Annotator "NA RC"]
[PlyCount "101"]
[EventDate "2020.08.15"]
[EventType "swiss"]
[EventCountry "POL"]
[SourceTitle "playchess.com"]
[Source "ChessBase"]
[SourceQuality "1"]
[TimeControl "40/5400+30:1800+30"]

1. d4 {[%emt 0:00:00]} d5 {[%emt 0:00:00]} 2. c4 {[%emt 0:00:00]} e6 {[%emt 0:00:00]} 3. Nf3 {[%emt 0:00:00]} c6 {[%emt 0:00:00]} 4. Nc3 {[%emt 0:00:37]} f5 {[%emt 0:00:00]} 5. g3 {[%emt 0:02:06]} Nf6 {[%emt 0:00:21]} 6. Bg2 {[%emt 0:00:05]} Be7 {[%emt 0:02:30]} 7. O-O {[%emt 0:03:17]} O-O {[%emt 0:00:16]} 8. e3 {[%emt 0:09:15]} b6 {[%emt 0:04:59]} 9. cxd5 {[%emt 0:03:43]} exd5 {[%emt 0:00:16]} 10. Ne5 {[%emt 0:02:03]} Bb7 {[%emt 0:02:11]} 11. Qb3 {[%emt 0:01:06]} Nbd7 {[%emt 0:03:27]} 12. Rd1 {[%emt 0:03:59]} Qe8 {[%emt 0:10:39]} 13. a4 {[%emt 0:12:07]} a5 {[%emt 0:11:52]} 14. Rd3 {[%emt 0:15:25]} Kh8 {[%emt 0:07:33]} 15. Nxd7 {[%emt 0:15:45]} Qxd7 {[%emt 0:08:56]} 16. Rd1 {[%emt 0:03:27]} Ba6 {[%emt 0:02:43]} 17. Bd2 {[%emt 0:02:04]} Ne4 {[%emt 0:13:16]} 18. Be1 {[%emt 0:00:08]} Rab8 {[%emt 0:00:58]} 19. Qc2 {[%emt 0:02:18]} Rf6 {[%emt 0:04:51]} 20. Bh3 {[%emt 0:01:55]} Rh6 {[%emt 0:00:43]} 21. Bg2 {[%emt 0:00:38]} g5 {[%emt 0:12:16]} 22. b3 {[%emt 0:00:57]} g4 {[%emt 0:00:57]} 23. Ne2 {[%emt 0:01:29]} Bd6 {[%emt 0:00:33]} 24. Nf4 {[%emt 0:01:18]} Bxf4 {[%emt 0:00:35]} 25. exf4 {[%emt 0:00:15]} Qf7 {[%emt 0:00:52]} 26. f3 {[%emt 0:00:12]} gxf3 {[%emt 0:06:34]} 27. Bxf3 {[%emt 0:00:05]} Qd7 {[%emt 0:02:43]} 28. Bc3 {[%emt 0:03:36]} Re8 {[%emt 0:00:40]} 29. Re1 {[%emt 0:00:57]} Rhe6 {[%emt 0:01:24]} 30. Kg2 {[%emt 0:01:24]} Qe7 {[%emt 0:00:34]} 31. Bxe4 {[%emt 0:01:08]} fxe4 {[%emt 0:00:36]} 32. Re3 {[%emt 0:00:15]} Kg8 {[%emt 0:00:34]} 33. Ra2 {[%emt 0:00:54]} Qf7 {[%emt 0:00:25]} 34. Qd1 {[%emt 0:00:25]} Rg6 {[%emt 0:00:18]} 35. Rf2 {[%emt 0:00:29]} Bc8 {[%emt 0:00:13]} 36. f5 {[%emt 0:02:35]} Bxf5 {[%emt 0:00:39]} 37. Qh5 {[%emt 0:00:20]} Rf8 {[%emt 0:00:22]} 38. Rf4 {[%emt 0:01:11]} Kh8 {[%emt 0:00:51]} 39. Qe2 {[%emt 0:00:44]} Qd7 {[%emt 0:00:29]} 40. Qf2 {[%emt 0:00:00]} Bh3+ {[%emt 0:00:00]} 41. Kg1 {[%emt 0:02:07]} Rxf4 {[%emt 0:08:51]} 42. Qxf4 {[%emt 0:01:52]} Qe7 {[%emt 0:02:34]} 43. Qb8+ {[%emt 0:02:30]} Rg8 {[%emt 0:00:34]} 44. Qe5+ {[%emt 0:00:35]} Qxe5 {[%emt 0:04:18]} 45. dxe5 {[%emt 0:00:24]} Be6 {[%emt 0:00:06]} 46. b4 {[%emt 0:01:53]} axb4 {[%emt 0:00:41]} 47. Bxb4 {[%emt 0:00:09]} Ra8 {[%emt 0:03:04]} 48. Rc3 {[%emt 0:02:59]} Rxa4 {[%emt 0:07:45]} 49. Rxc6 {[%emt 0:00:18]} Rxb4 {[%emt 0:00:22]} 50. Rxe6 {[%emt 0:00:04]} Kg8 {[%emt 0:00:27]} 51. Rf6 {[%emt 0:00:17]} 0-1

[Event "56th Rubinstein Memorial C 2020"]
[Site "Polanica Zdroj"]
[Date "2020.08.18"]
[Round "4.11"]
[White "Kejna, Piotr"]
[Black "Panczuk, Grzegorz"]
[Result "1-0"]
[ECO "C01"]
[WhiteElo "1767"]
[BlackElo "1695"]
[Annotator "NA"]
[PlyCount "107"]
[EventDate "2020.08.15"]
[EventType "swiss"]
[EventCountry "POL"]
[SourceTitle "playchess.com"]
[Source "ChessBase"]
[SourceQuality "1"]
[TimeControl "40/5400+30:1800+30"]

1. e4 {[%emt 0:00:00]} e6 {[%emt 0:00:00]} 2. d4 {[%emt 0:00:23]} d5 {[%emt 0:00:00]} 3. exd5 {[%emt 0:01:31]} exd5 {[%emt 0:00:00]} 4. Bd3 {[%emt 0:00:25]} Bd6 {[%emt 0:00:00]} 5. Nf3 {[%emt 0:03:29]} Ne7 {[%emt 0:00:56]} 6. Bg5 {[%emt 0:04:07]} f6 {[%emt 0:01:11]} 7. Bh4 {[%emt 0:00:52]} c6 {[%emt 0:04:50]} 8. Nbd2 {[%emt 0:03:16]} Bf5 {[%emt 0:09:09]} 9. Qe2 {[%emt 0:01:22]} Qd7 {[%emt 0:05:21]} 10. O-O-O {[%emt 0:03:59]} Bxd3 {[%emt 0:03:36]} 11. Qxd3 {[%emt 0:00:12]} O-O {[%emt 0:00:11]} 12. Bg3 {[%emt 0:00:47]} Na6 {[%emt 0:04:22]} 13. c3 {[%emt 0:01:16]} c5 {[%emt 0:02:52]} 14. Nf1 {[%emt 0:07:30]} c4 {[%emt 0:06:20]} 15. Qc2 {[%emt 0:01:41]} b5 {[%emt 0:02:09]} 16. a3 {[%emt 0:05:04]} Nc7 {[%emt 0:02:32]} 17. Ne3 {[%emt 0:03:37]} a5 {[%emt 0:04:37]} 18. Rhe1 {[%emt 0:04:05]} b4 {[%emt 0:10:21]} 19. Bxd6 {[%emt 0:02:44]} Qxd6 {[%emt 0:01:19]} 20. axb4 {[%emt 0:00:33]} axb4 {[%emt 0:00:25]} 21. Kd2 {[%emt 0:00:44]} Ra2 {[%emt 0:02:10]} 22. Ke2 {[%emt 0:01:11]} bxc3 {[%emt 0:02:36]} 23. Qxc3 {[%emt 0:01:22]} Nb5 {[%emt 0:09:34]} 24. Qc2 {[%emt 0:00:17]} Rb8 {[%emt 0:01:56]} 25. Rb1 {[%emt 0:15:49]} Na3 {[%emt 0:07:56]} 26. Qa4 {[%emt 0:00:20]} Rbxb2+ {[%emt 0:01:41]} 27. Rxb2 {[%emt 0:00:18]} Rxb2+ {[%emt 0:00:06]} 28. Kf1 {[%emt 0:00:20]} Nb5 {[%emt 0:02:37]} 29. Qa8+ {[%emt 0:04:09]} Kf7 {[%emt 0:00:25]} 30. Nf5 {[%emt 0:00:22]} Qd7 {[%emt 0:02:28]} 31. Rxe7+ {[%emt 0:00:17]} Qxe7 {[%emt 0:00:05]} 32. Nxe7 {[%emt 0:00:09]} Kxe7 {[%emt 0:00:04]} 33. Qxd5 {[%emt 0:00:39]} c3 {[%emt 0:02:45]} 34. Qc5+ {[%emt 0:00:25]} Kd7 {[%emt 0:00:31]} 35. Ne1 {[%emt 0:01:19]} g6 {[%emt 0:00:45]} 36. d5 {[%emt 0:00:26]} Rb1 {[%emt 0:01:51]} 37. Ke2 {[%emt 0:04:11]} Rb2+ {[%emt 0:01:01]} 38. Kd3 {[%emt 0:00:53]} Rd2+ {[%emt 0:00:41]} 39. Ke3 {[%emt 0:00:08]} Nc7 {[%emt 0:01:07]} 40. Qc6+ {[%emt 0:00:00]} Kd8 {[%emt 0:00:00]} 41. Qxf6+ {[%emt 0:01:33]} Kd7 {[%emt 0:00:39]} 42. Qc6+ {[%emt 0:00:17]} Kd8 {[%emt 0:00:10]} 43. Qxc3 {[%emt 0:00:20]} Rxd5 {[%emt 0:00:14]} 44. Qh8+ {[%emt 0:00:07]} Ne8 {[%emt 0:00:23]} 45. Qxh7 {[%emt 0:00:21]} Re5+ {[%emt 0:01:01]} 46. Kd2 {[%emt 0:00:10]} Re6 {[%emt 0:00:13]} 47. Nd3 {[%emt 0:00:37]} Nf6 {[%emt 0:00:14]} 48. Qh8+ {[%emt 0:00:35]} Ke7 {[%emt 0:00:27]} 49. Qg7+ {[%emt 0:00:21]} Kd6 {[%emt 0:00:07]} 50. Qf8+ {[%emt 0:00:25]} Kc7 {[%emt 0:00:47]} 51. f3 {[%emt 0:00:34]} Nd7 {[%emt 0:00:21]} 52. Qf4+ {[%emt 0:01:28]} Rd6 {[%emt 0:00:19]} 53. Kc2 {[%emt 0:00:49]} Kc6 {[%emt 0:00:28]} 54. Ne5+ {[%emt 0:00:10]} 1-0

[Event "56th Rubinstein Memorial C 2020"]
[Site "Polanica Zdroj"]
[Date "2020.08.18"]
[Round "4.12"]
[White "Orlik, Sandra"]
[Black "Komendecki, Antoni"]
[Result "0-1"]
[ECO "E81"]
[WhiteElo "1738"]
[BlackElo "1631"]
[Annotator "NA"]
[PlyCount "92"]
[EventDate "2020.08.15"]
[EventType "swiss"]
[EventCountry "POL"]
[SourceTitle "playchess.com"]
[Source "ChessBase"]
[SourceQuality "1"]
[TimeControl "40/5400+30:1800+30"]

1. d4 {[%emt 0:00:00]} Nf6 {[%emt 0:00:00]} 2. c4 {[%emt 0:00:00]} g6 {[%emt 0:00:13]} 3. Nc3 {[%emt 0:00:24]} Bg7 {[%emt 0:00:47]} 4. e4 {[%emt 0:01:04]} d6 {[%emt 0:00:49]} 5. f3 {[%emt 0:01:17]} O-O {[%emt 0:02:36]} 6. Be3 {[%emt 0:01:24]} c5 {[%emt 0:02:01]} 7. dxc5 {[%emt 0:04:04]} Qa5 {[%emt 0:00:30]} 8. cxd6 {[%emt 0:04:05]} exd6 {[%emt 0:05:29]} 9. Qd2 {[%emt 0:03:29]} a6 {[%emt 0:01:54]} 10. Rc1 {[%emt 0:02:55]} Nc6 {[%emt 0:05:48]} 11. Nge2 {[%emt 0:02:44]} Be6 {[%emt 0:02:11]} 12. Nd4 {[%emt 0:01:02]} Nxd4 {[%emt 0:04:38]} 13. Bxd4 {[%emt 0:00:16]} Rfe8 {[%emt 0:05:09]} 14. Be2 {[%emt 0:02:54]} Rac8 {[%emt 0:02:46]} 15. b3 {[%emt 0:01:36]} Bd7 {[%emt 0:09:30]} 16. O-O {[%emt 0:05:48]} b5 {[%emt 0:02:04]} 17. Rfd1 {[%emt 0:02:48]} bxc4 {[%emt 0:07:34]} 18. Bxc4 {[%emt 0:03:28]} Bb5 {[%emt 0:01:06]} 19. Bxb5 {[%emt 0:03:23]} axb5 {[%emt 0:00:12]} 20. Qb2 {[%emt 0:04:12]} b4 {[%emt 0:02:07]} 21. Nd5 {[%emt 0:10:51]} Nxd5 {[%emt 0:00:20]} 22. Bxg7 {[%emt 0:00:32]} Nc3 {[%emt 0:00:05]} 23. Bxc3 {[%emt 0:00:11]} bxc3 {[%emt 0:00:07]} 24. Qc2 {[%emt 0:02:32]} Rc6 {[%emt 0:00:11]} 25. Rd5 {[%emt 0:01:38]} Qa3 {[%emt 0:01:32]} 26. Rd4 {[%emt 0:02:14]} Ra8 {[%emt 0:01:27]} 27. Ra4 {[%emt 0:02:46]} Rxa4 {[%emt 0:00:18]} 28. bxa4 {[%emt 0:00:06]} Rc4 {[%emt 0:01:49]} 29. Kf1 {[%emt 0:04:33]} Qc5 {[%emt 0:08:22]} 30. Ke2 {[%emt 0:07:33]} Qe5 {[%emt 0:05:08]} 31. g3 {[%emt 0:07:23]} Qc5 {[%emt 0:10:20]} 32. Rb1 {[%emt 0:06:49]} Rd4 {[%emt 0:04:32]} 33. Rd1 {[%emt 0:00:58]} Rb4 {[%emt 0:00:12]} 34. Rb1 {[%emt 0:00:20]} Qc4+ {[%emt 0:03:19]} 35. Ke1 {[%emt 0:02:31]} Rxb1+ {[%emt 0:02:35]} 36. Qxb1 {[%emt 0:00:09]} Qxa4 {[%emt 0:00:44]} 37. Ke2 {[%emt 0:02:57]} c2 {[%emt 0:02:02]} 38. Qb2 {[%emt 0:03:36]} Qxa2 {[%emt 0:00:30]} 39. Qc1 {[%emt 0:00:31]} Qb3 {[%emt 0:02:22]} 40. f4 {[%emt 0:00:00]} Qc4+ {[%emt 0:00:00]} 41. Ke3 {[%emt 0:03:50]} Qc3+ {[%emt 0:01:28]} 42. Ke2 {[%emt 0:00:13]} f5 {[%emt 0:01:22]} 43. e5 {[%emt 0:00:53]} d5 {[%emt 0:00:28]} 44. Qh1 {[%emt 0:00:55]} c1=Q {[%emt 0:01:04]} 45. Qxd5+ {[%emt 0:00:17]} Kg7 {[%emt 0:00:01]} 46. Qd7+ {[%emt 0:01:40]} Kh6 {[%emt 0:00:13]} 0-1

[Event "56th Rubinstein Memorial C 2020"]
[Site "Polanica Zdroj"]
[Date "2020.08.18"]
[Round "4.13"]
[White "Wolak, Kamil"]
[Black "Demski, Michal"]
[Result "0-1"]
[ECO "C45"]
[WhiteElo "1715"]
[BlackElo "1617"]
[Annotator "NA"]
[PlyCount "76"]
[EventDate "2020.08.15"]
[EventType "swiss"]
[EventCountry "POL"]
[SourceTitle "playchess.com"]
[Source "ChessBase"]
[SourceQuality "1"]
[TimeControl "40/5400+30:1800+30"]

1. e4 {[%emt 0:05:02]} e5 {[%emt 0:00:00]} 2. Nf3 {[%emt 0:00:28]} Nc6 {[%emt 0:00:00]} 3. d4 {[%emt 0:00:40]} exd4 {[%emt 0:00:55]} 4. Nxd4 {[%emt 0:00:07]} Bc5 {[%emt 0:00:39]} 5. Be3 {[%emt 0:00:42]} Qf6 {[%emt 0:01:11]} 6. c3 {[%emt 0:00:25]} Nge7 {[%emt 0:01:59]} 7. g3 {[%emt 0:00:06]} O-O {[%emt 0:02:16]} 8. Bg2 {[%emt 0:00:06]} b6 {[%emt 0:02:47]} 9. O-O {[%emt 0:03:31]} Bb7 {[%emt 0:05:11]} 10. f4 {[%emt 0:01:00]} Bxd4 {[%emt 0:10:01]} 11. cxd4 {[%emt 0:02:37]} d5 {[%emt 0:01:42]} 12. e5 {[%emt 0:05:52]} Qg6 {[%emt 0:03:51]} 13. Nc3 {[%emt 0:02:08]} Nb4 {[%emt 0:03:15]} 14. Rc1 {[%emt 0:30:52]} Nf5 {[%emt 0:03:36]} 15. Re1 {[%emt 0:06:15]} Nh6 {[%emt 0:28:46]} 16. Bf1 {[%emt 0:06:34]} Ba6 {[%emt 0:07:11]} 17. Bxa6 {[%emt 0:04:32]} Nxa6 {[%emt 0:00:06]} 18. Nxd5 {[%emt 0:01:15]} Qe6 {[%emt 0:04:13]} 19. Nc3 {[%emt 0:05:27]} c6 {[%emt 0:02:26]} 20. a3 {[%emt 0:03:47]} Nc7 {[%emt 0:01:50]} 21. Qf3 {[%emt 0:04:09]} Rad8 {[%emt 0:08:04]} 22. Ne4 {[%emt 0:04:44]} Qb3 {[%emt 0:03:24]} 23. Rxc6 {[%emt 0:06:54]} Ne6 {[%emt 0:02:04]} 24. Qh5 {[%emt 0:04:00]} Qd5 {[%emt 0:01:39]} 25. Qf3 {[%emt 0:00:38]} Nxd4 {[%emt 0:01:40]} 26. Bxd4 {[%emt 0:00:11]} Qxd4+ {[%emt 0:00:03]} 27. Kh1 {[%emt 0:00:44]} Nf5 {[%emt 0:01:16]} 28. Qc3 {[%emt 0:00:24]} Qd5 {[%emt 0:02:21]} 29. Kg1 {[%emt 0:00:28]} Nd4 {[%emt 0:00:48]} 30. Kf2 {[%emt 0:00:39]} Qxc6 {[%emt 0:00:21]} 31. Qxc6 {[%emt 0:00:15]} Nxc6 {[%emt 0:00:04]} 32. Rc1 {[%emt 0:00:03]} Nd4 {[%emt 0:01:01]} 33. Nd6 {[%emt 0:00:05]} Ne6 {[%emt 0:00:37]} 34. f5 {[%emt 0:00:09]} Nc5 {[%emt 0:00:05]} 35. Rd1 {[%emt 0:00:16]} Rfe8 {[%emt 0:00:37]} 36. b4 {[%emt 0:00:17]} Ne4+ {[%emt 0:00:18]} 37. Kf3 {[%emt 0:00:08]} Nxd6 {[%emt 0:00:04]} 38. exd6 {[%emt 0:00:06]} Rd7 {[%emt 0:00:11]} 0-1

[Event "56th Rubinstein Memorial C 2020"]
[Site "Polanica Zdroj"]
[Date "2020.08.18"]
[Round "4.14"]
[White "Borowski, Przemyslaw"]
[Black "Lada, Damian"]
[Result "1-0"]
[ECO "B09"]
[WhiteElo "1790"]
[BlackElo "1619"]
[Annotator "NA"]
[PlyCount "85"]
[EventDate "2020.08.15"]
[EventType "swiss"]
[EventCountry "POL"]
[SourceTitle "playchess.com"]
[Source "ChessBase"]
[SourceQuality "1"]
[TimeControl "40/5400+30:1800+30"]

1. e4 {[%emt 0:00:00]} d6 {[%emt 0:00:44]} 2. d4 {[%emt 0:00:00]} Nf6 {[%emt 0:00:07]} 3. Nc3 {[%emt 0:00:00]} g6 {[%emt 0:00:07]} 4. f4 {[%emt 0:00:00]} Bg7 {[%emt 0:00:23]} 5. Be2 {[%emt 0:01:22]} O-O {[%emt 0:01:59]} 6. g4 {[%emt 0:04:27]} e5 {[%emt 0:02:46]} 7. g5 {[%emt 0:02:18]} Nfd7 {[%emt 0:19:58]} 8. fxe5 {[%emt 0:00:21]} dxe5 {[%emt 0:00:18]} 9. d5 {[%emt 0:00:51]} c6 {[%emt 0:09:27]} 10. Be3 {[%emt 0:06:42]} Nb6 {[%emt 0:12:28]} 11. Qd2 {[%emt 0:06:33]} Bd7 {[%emt 0:19:35]} 12. O-O-O {[%emt 0:02:24]} Na6 {[%emt 0:00:42]} 13. Kb1 {[%emt 0:01:44]} Qc8 {[%emt 0:06:13]} 14. h4 {[%emt 0:03:44]} Nc7 {[%emt 0:02:37]} 15. h5 {[%emt 0:12:02]} cxd5 {[%emt 0:00:34]} 16. Bxb6 {[%emt 0:02:20]} axb6 {[%emt 0:00:07]} 17. exd5 {[%emt 0:02:09]} Bf5 {[%emt 0:01:13]} 18. d6 {[%emt 0:01:49]} Ne6 {[%emt 0:01:12]} 19. Nd5 {[%emt 0:01:59]} Re8 {[%emt 0:04:22]} 20. d7 {[%emt 0:08:13]} Bxc2+ {[%emt 0:02:18]} 21. Qxc2 {[%emt 0:02:35]} Qxc2+ {[%emt 0:00:07]} 22. Kxc2 {[%emt 0:00:08]} Red8 {[%emt 0:00:38]} 23. Nxb6 {[%emt 0:03:59]} Ra5 {[%emt 0:02:07]} 24. Kb1 {[%emt 0:18:50]} Nxg5 {[%emt 0:01:29]} 25. Bc4 {[%emt 0:04:22]} Kf8 {[%emt 0:01:11]} 26. Ne2 {[%emt 0:02:43]} f5 {[%emt 0:01:39]} 27. hxg6 hxg6 {[%emt 0:00:06]} 28. Nc3 {[%emt 0:04:42]} Nf3 {[%emt 0:03:37]} 29. b4 {[%emt 0:01:51]} Ra3 {[%emt 0:01:29]} 30. Kb2 {[%emt 0:00:17]} Ra7 {[%emt 0:00:05]} 31. Rd6 {[%emt 0:01:31]} e4 {[%emt 0:02:01]} 32. Kb3 {[%emt 0:03:51]} Ne5 {[%emt 0:00:33]} 33. Nb5 {[%emt 0:01:20]} Ra6 {[%emt 0:01:37]} 34. Nc7 {[%emt 0:00:31]} Nxc4 {[%emt 0:00:52]} 35. Kxc4 {[%emt 0:00:20]} Rxb6 {[%emt 0:02:13]} 36. Rxb6 {[%emt 0:00:20]} Rxd7 {[%emt 0:00:08]} 37. Ne6+ {[%emt 0:00:20]} Kg8 {[%emt 0:00:47]} 38. Nxg7 {[%emt 0:00:17]} Kxg7 {[%emt 0:00:05]} 39. Rg1 {[%emt 0:00:20]} e3 {[%emt 0:00:45]} 40. Rbxg6+ {[%emt 0:00:00]} Kf7 {[%emt 0:00:00]} 41. Rg7+ {[%emt 0:00:28]} Ke6 {[%emt 0:00:54]} 42. Rxd7 Kxd7 {[%emt 0:00:07]} 43. Kd3 {[%emt 0:00:20]} 1-0

[Event "56th Rubinstein Memorial C 2020"]
[Site "Polanica Zdroj"]
[Date "2020.08.18"]
[Round "4.15"]
[White "Hasterok, Lukasz"]
[Black "Ciechonski, Piotr"]
[Result "1/2-1/2"]
[ECO "A48"]
[WhiteElo "1622"]
[BlackElo "1774"]
[Annotator "NA"]
[PlyCount "71"]
[EventDate "2020.08.15"]
[EventType "swiss"]
[EventCountry "POL"]
[SourceTitle "playchess.com"]
[Source "ChessBase"]
[SourceQuality "1"]
[TimeControl "40/5400+30:1800+30"]

1. d4 {[%emt 0:00:00]} Nf6 {[%emt 0:02:48]} 2. Nf3 {[%emt 0:00:35]} g6 {[%emt 0:00:32]} 3. Bf4 {[%emt 0:00:31]} Bg7 {[%emt 0:00:17]} 4. h3 {[%emt 0:01:29]} O-O {[%emt 0:00:16]} 5. e3 {[%emt 0:00:14]} c5 {[%emt 0:00:39]} 6. c3 {[%emt 0:00:17]} cxd4 {[%emt 0:00:29]} 7. exd4 {[%emt 0:00:08]} d6 {[%emt 0:01:18]} 8. Bc4 {[%emt 0:04:22]} Nbd7 {[%emt 0:02:17]} 9. O-O {[%emt 0:01:19]} Qc7 {[%emt 0:02:32]} 10. Nbd2 {[%emt 0:01:22]} Rb8 {[%emt 0:01:10]} 11. a4 {[%emt 0:01:43]} a6 {[%emt 0:00:44]} 12. Re1 {[%emt 0:00:17]} Re8 {[%emt 0:00:30]} 13. Qb3 {[%emt 0:00:21]} e6 {[%emt 0:04:21]} 14. Bxe6 {[%emt 0:10:38]} Rxe6 {[%emt 0:08:29]} 15. Rxe6 {[%emt 0:00:43]} Nc5 {[%emt 0:00:54]} 16. dxc5 {[%emt 0:04:31]} Bxe6 {[%emt 0:00:07]} 17. Qb6 {[%emt 0:00:25]} Qxb6 {[%emt 0:02:13]} 18. cxb6 {[%emt 0:00:07]} Rd8 {[%emt 0:04:34]} 19. a5 {[%emt 0:02:54]} d5 {[%emt 0:08:08]} 20. Nd4 {[%emt 0:01:24]} Nd7 {[%emt 0:01:04]} 21. N2f3 {[%emt 0:00:47]} Nc5 {[%emt 0:00:50]} 22. Bc7 {[%emt 0:01:25]} Re8 {[%emt 0:00:52]} 23. Re1 {[%emt 0:04:05]} Bd7 {[%emt 0:01:52]} 24. Bd6 {[%emt 0:10:20]} Na4 {[%emt 0:01:28]} 25. Ba3 {[%emt 0:02:56]} Rxe1+ {[%emt 0:03:16]} 26. Nxe1 {[%emt 0:00:10]} Bf8 {[%emt 0:00:07]} 27. Bxf8 {[%emt 0:00:51]} Kxf8 {[%emt 0:00:02]} 28. Nd3 {[%emt 0:00:11]} Ke7 {[%emt 0:01:06]} 29. Kf1 {[%emt 0:00:16]} Kd6 {[%emt 0:00:49]} 30. Ke2 {[%emt 0:01:37]} f6 {[%emt 0:02:05]} 31. f4 {[%emt 0:07:55]} g5 {[%emt 0:00:16]} 32. f5 Nc5 33. b3 Na4 34. Kd2 Nc5 35. Nxc5 Kxc5 36. Kd3 1/2-1/2

[Event "56th Rubinstein Memorial C 2020"]
[Site "Polanica Zdroj"]
[Date "2020.08.18"]
[Round "4.16"]
[White "Lambrecht, Tomasz"]
[Black "Urbaniak, Karol"]
[Result "1-0"]
[ECO "A58"]
[WhiteElo "1750"]
[BlackElo "1612"]
[Annotator "NA"]
[PlyCount "90"]
[EventDate "2020.08.15"]
[EventType "swiss"]
[EventCountry "POL"]
[SourceTitle "playchess.com"]
[Source "ChessBase"]
[SourceQuality "1"]
[TimeControl "40/5400+30:1800+30"]

1. d4 Nf6 2. c4 c5 3. d5 b5 4. cxb5 a6 5. bxa6 Bxa6 6. Nc3 g6 7. e4 Bxf1 8. Kxf1 d6 9. Nf3 Nbd7 10. g3 Bg7 11. Kg2 O-O 12. a4 Qb6 13. Qc2 Rfb8 14. Nb5 h6 15. Nd2 Qd8 16. Ra3 Ne8 17. Nc4 Nb6 18. b3 Nc7 19. Nxc7 Qxc7 20. Bd2 Rb7 21. Na5 Rba7 22. Nc6 Ra6 23. a5 Nc8 24. Qd3 e6 25. Re1 Ne7 26. Nxe7+ Qxe7 27. dxe6 Qxe6 28. b4 Bb2 29. Ra4 c4 30. Qd5 c3 31. Bxh6 c2 32. Qxe6 fxe6 33. Bc1 Bc3 34. Re2 Rb8 35. Rxc2 Rxb4 36. Ra3 Bd4 37. Bd2 Rb5 38. Ra4 Bc5 39. Rac4 Kf7 40. e5 Ke7 41. exd6+ Kxd6 42. Rxc5 Rxc5 43. Bb4 Raxa5 44. Rxc5 Rxc5 45. Kf3 Kd5 1-0

[Event "56th Rubinstein Memorial C 2020"]
[Site "Polanica Zdroj"]
[Date "2020.08.19"]
[Round "5.2"]
[White "Komendecki, Jacek"]
[Black "Janzer, Hubert"]
[Result "1-0"]
[ECO "C02"]
[WhiteElo "2024"]
[BlackElo "1893"]
[Annotator "ChessBase"]
[PlyCount "83"]
[EventDate "2020.08.15"]
[EventType "swiss"]
[EventCountry "POL"]
[SourceTitle "playchess.com"]
[Source "ChessBase"]
[SourceQuality "1"]
[TimeControl "40/5400+30:1800+30"]

1. e4 {[%emt 0:00:00]} e6 {[%emt 0:00:00]} 2. d4 {[%emt 0:00:00]} d5 {[%emt 0:00:00]} 3. e5 {[%emt 0:00:00]} c5 {[%emt 0:00:00]} 4. c3 {[%emt 0:00:00]} Nc6 {[%emt 0:00:00]} 5. Nf3 {[%emt 0:00:09]} Qb6 {[%emt 0:00:00]} 6. a3 {[%emt 0:00:40]} Nh6 {[%emt 0:00:16]} 7. b4 {[%emt 0:01:17]} cxd4 {[%emt 0:00:06]} 8. cxd4 {[%emt 0:00:05]} Nf5 {[%emt 0:00:04]} 9. Be3 {[%emt 0:00:15]} Be7 {[%emt 0:00:56]} 10. Bd3 {[%emt 0:00:38]} f6 {[%emt 0:04:56]} 11. exf6 {[%emt 0:09:45]} Bxf6 {[%emt 0:00:12]} 12. Bxf5 {[%emt 0:00:11]} exf5 {[%emt 0:00:14]} 13. Nc3 {[%emt 0:01:15]} Be6 {[%emt 0:04:17]} 14. O-O {[%emt 0:00:55]} O-O {[%emt 0:01:52]} 15. Na4 {[%emt 0:00:39]} Qd8 {[%emt 0:01:27]} 16. Nc5 {[%emt 0:00:09]} Bc8 {[%emt 0:00:15]} 17. Ra2 {[%emt 0:30:49]} f4 {[%emt 0:14:03]} 18. Bc1 {[%emt 0:20:28]} b6 {[%emt 0:07:52]} 19. Nb3 {[%emt 0:02:05]} Ba6 {[%emt 0:00:33]} 20. Re1 {[%emt 0:01:03]} Qd6 {[%emt 0:00:20]} 21. Rd2 {[%emt 0:07:32]} Bc4 {[%emt 0:02:38]} 22. Bb2 {[%emt 0:00:26]} Rae8 {[%emt 0:06:01]} 23. Nc1 {[%emt 0:00:15]} g5 {[%emt 0:06:23]} 24. Nd3 {[%emt 0:00:25]} Rxe1+ {[%emt 0:15:31]} 25. Qxe1 {[%emt 0:00:07]} g4 {[%emt 0:01:13]} 26. Nfe5 {[%emt 0:00:13]} Bxe5 {[%emt 0:00:52]} 27. Nxe5 {[%emt 0:00:38]} Qe6 {[%emt 0:02:04]} 28. Qd1 {[%emt 0:01:15]} Nxe5 {[%emt 0:00:52]} 29. dxe5 {[%emt 0:00:09]} f3 {[%emt 0:00:17]} 30. Rd4 {[%emt 0:03:06]} Rf7 {[%emt 0:03:33]} 31. Qd2 {[%emt 0:01:14]} Qf5 {[%emt 0:02:38]} 32. Bc1 {[%emt 0:14:37]} fxg2 {[%emt 0:01:56]} 33. Kxg2 {[%emt 0:04:37]} Qf3+ {[%emt 0:01:42]} 34. Kg1 {[%emt 0:00:01]} Rf5 {[%emt 0:00:30]} 35. e6 {[%emt 0:01:34]} Qe2 {[%emt 0:05:23]} 36. Qxe2 {[%emt 0:00:23]} Bxe2 {[%emt 0:00:07]} 37. Bf4 {[%emt 0:00:30]} Kg7 {[%emt 0:04:33]} 38. Bd6 {[%emt 0:00:35]} Kf6 {[%emt 0:01:19]} 39. e7 {[%emt 0:00:16]} Kf7 {[%emt 0:00:05]} 40. Rd2 {[%emt 0:00:00]} Bf3 {[%emt 0:00:00]} 41. Rc2 {[%emt 0:01:13]} Rf6 {[%emt 0:00:49]} 42. Rc8 {[%emt 0:00:16]} 1-0